Cogmind - Beta 10 @@@ ROGUE MODE // 2020.09.17 @ 09:44:50 Player: jpka Result: Destroyed by as-38845 with Assembled F-torch Performance ------------- Evolutions (0) 0 Regions Visited (2) 400 Robots Destroyed (28) 140 Value Destroyed (572) 572 Prototype IDs (0) 0 Alien Tech Used (0) 0 Bonus (0) 0 TOTAL SCORE: 1112 Bonus ------- None Cogmind --------- Core Integrity 0/250 Matter 222/300 Energy 82/250 System Corruption 3% Temperature Cool (110) Movement Rolling (120) Ox2 Location -10/Mines Parts ------- > --- POWER (1) -------- Ion Engine > --- PROPULSION (2) --- Compact Wheel > --- UTILITY (2) ------ High-capacity Storage Unit Hardened Light Armor Plating > --- WEAPON (2) ------- EM Pulse Gun Light Cannon > --- INVENTORY (12) --- Improved Heat Sink Weight Redist. System Improved Sensor Array Improved Sensor Array Improved Terrain Scanner Light Cannon Grenade Launcher Rocket Launcher Mining Laser Plasma Cutter Plasma Cutter Peak State ------------ > --- POWER ------------ Ion Engine > --- PROPULSION ------- Wheel Compact Wheel > --- UTILITY ---------- High-capacity Storage Unit Hardened Light Armor Plating > --- WEAPON ----------- EM Pulse Gun Light Cannon > --- INVENTORY -------- Ion Engine Weight Redist. System Improved Sensor Array Improved Sensor Array Improved Terrain Scanner Shield Generator Light Cannon Grenade Launcher Rocket Launcher Mining Laser Plasma Cutter Plasma Cutter [Rating: 10] Favorites ----------- Power Ion Engine Engine Ion Engine Propulsion Wheel Wheel Wheel Hover Unit Hover Unit Utility Seismic Analyzer Device Improved Terrain Scanner Storage High-capacity Storage Unit Processor Seismic Analyzer Protection Hardened Light Armor Plating Weapon EM Pulse Gun Energy Gun EM Pulse Gun Ballistic Gun Assault Rifle Ballistic Cannon Light Cannon Launcher Grenade Launcher Special Weapon Mining Laser Build | -11 -10 -10 ------- Run | Scr Mat Min Slots Evolved . | . . . Power . | . . . Propulsion . | . . . Utility . | . . . Weapon . | . . . Parts Attached 49 | 11 33 5 Power 5 | 1 3 1 Engine 5 | 1 3 1 Core . | . . . Reactor . | . . . Propulsion 14 | 5 9 . Treads . | . . . Leg . | . . . Wheel 12 | 5 7 . Hover 2 | . 2 . Flight . | . . . Utility 8 | 2 6 . Device 2 | 1 1 . Storage 4 | . 4 . Processor 1 | 1 . . Hackware . | . . . Protection 1 | . 1 . Artifact . | . . . Weapon 22 | 3 15 4 Energy Gun 11 | 2 8 1 Energy Cannon . | . . . Ballistic Gun 3 | 1 2 . Ballistic Cannon 3 | . 2 1 Launcher 2 | . . 2 Special Weapon 3 | . 3 . Impact Weapon . | . . . Slashing Weapon . | . . . Piercing Weapon . | . . . Special Melee Weapon . | . . . Unidentified Prototypes . | . . . Parts Lost 13 | . 11 2 Power 3 | . 2 1 Propulsion 4 | . 3 1 Utility . | . . . Weapon 6 | . 6 . Highest Loss Streak 6 | . 6 2 Average Slot Usage (%) 96 | . 96 98 Engine 13 | . 13 14 Wheel 26 | . 26 26 Device 4 | . 5 . Storage 10 | . 9 14 Processor 9 | . 11 . Protection 3 | . 1 14 Energy Gun 12 | . 14 8 Ballistic Gun 5 | . 6 . Ballistic Cannon 3 | . 1 14 Launcher 1 | . . 5 Special Weapon 3 | . 4 . Naked Turns . | . . . Heaviest Build 48 | 10 47 48 Greatest Support 26 | 26 26 26 Greatest Overweight (x) 12 | . 12 2 Average Overweight (x) . | . 1 1 Largest Inventory Capacity 12 | 4 12 12 Average Capacity 9 | 4 9 12 Most Carried 12 | 4 12 12 Average Carried 8 | 2 7 11 Final Capacity 12 | 4 12 12 Final Carried 12 | 4 12 11 Class Distribution -------------------- 84% | Mutant 15% | Scavenger-Mutant Dominant Class ---------------- Mutant | -10/Materials Mutant | -10/Mines Resources | -11 -10 -10 ----------- Run | Scr Mat Min Matter Collected 732 | 316 304 112 Remotely . | . . . Salvage Created 965 | 101 722 142 Parts 54 | 11 30 13 Haulers Intercepted 1 | . 1 . Recyclers Shooed 3 | . 3 . Parts Field Recycled . | . . . Retrieved Matter . | . . . Parts Self-Destructed . | . . . Prevented . | . . . Kills | -11 -10 -10 ------- Run | Scr Mat Min Combat Hostiles Destroyed 20 | . 13 7 Melee 1 | . . 1 Guns 12 | . 12 . Cannons 5 | . 1 4 AOE 2 | . . 2 Classes Destroyed 7 | 2 4 1 Builder 1 | . 1 . Tunneler 2 | 2 . . Hauler 1 | . 1 . Recycler 4 | 1 3 . Swarmer 7 | . 3 4 Grunt 12 | . 10 2 Assembled 1 | . . 1 Best Kill Streak 7 | 3 7 3 Combat Bots Only 5 | . 5 3 Max Kills in Single Turn 3 | 2 1 3 Gunslinging . | . . . Exploded 2 | . . 2 Melee 1 | . . 1 Uniques/NPCs Destroyed . | . . . Combat | -11 -10 -10 -------- Run | Scr Mat Min Damage Taken 1300 | . 891 409 Core 251 | . 165 86 Absorbed by Shields . | . . . Core Remaining (%) 100 | 100 . . Volleys Fired 78 | 4 63 11 Largest 2 | 2 2 2 Hottest 100 | 70 100 75 Shots Fired 133 | 8 103 22 Gun 105 | 8 87 10 Cannon 15 | . 4 11 Launcher 1 | . . 1 Special 12 | . 12 . Kinetic 52 | 4 37 11 Thermal 45 | 4 41 . Explosive 1 | . . 1 Electromagnetic 35 | . 25 10 Robot Hit Streak 15 | 2 15 4 Robot Miss Streak 3 | 1 3 2 Penetration Max . | . . . Secondary Targets 1 | . 1 . Max Gunslinging Chain 1 | . 1 . Shots Hit Robots 78 | 4 64 10 Core Hits 47 | 4 31 12 Critical Hits . | . . . Critical Kills . | . . . Critical Parts Destroyed . | . . . Melee Attacks . | . . . Impact . | . . . Slashing . | . . . Piercing . | . . . Sneak Attacks . | . . . Combat Hostiles . | . . . Follow-up Attacks . | . . . Damage Inflicted 1367 | 77 1028 262 Guns 859 | 77 738 44 Cannons 188 | . 50 138 Explosions 310 | . 240 70 Melee . | . . . Ramming 10 | . . 10 Kinetic 450 | 40 272 138 Thermal 524 | 37 487 . Explosive 70 | . . 70 Electromagnetic 313 | . 269 44 Impact . | . . . Slashing . | . . . Piercing . | . . . Highest Corruption 3 | . 2 3 Average Corruption 2 | . 2 2 Corruption Purged . | . . . Effects 8 | . 7 1 Message Errors 5 | . 5 . Heat Flow Errors 1 | . . 1 Data Loss (minor) 1 | . 1 . Targeting Errors 1 | . 1 . Overload Shots . | . . . Overflow Damage 68 | . 68 . Projectiles . | . . . Explosions 68 | . 68 . Melee . | . . . Knockbacks 2 | . . 2 Impact . | . . . Kinetic 2 | . . 2 Secondary . | . . . Self-Inflicted Damage 96 | . 91 5 Shots 2 | . 2 . Rammed 1 | . . 1 Targets Rammed 1 | . . 1 Kicked . | . . . Crushed . | . . . Highest Temperature 150 | 27 150 100 Average Temperature 41 | 12 45 35 Received Heat Transfer 446 | . 342 104 Siege Activations . | . . . Robots Corrupted . | . . . Combat Hostiles . | . . . Parts Fried . | . . . Impact Corruptions . | . . . Robots Melted . | . . . Combat Hostiles . | . . . Parts Melted 1 | . 1 . Heat Transferred 1069 | 111 958 . Parts Sabotaged . | . . . Parts Stolen . | . . . Parts Stripped . | . . . Power Chain Reactions 2 | . 2 . Missiles Intercepted . | . . . Alert | -11 -10 -10 ------- Run | Scr Mat Min Peak Influence 192 | 15 170 192 Initial 27 | . 9 27 Average 68 | 7 61 132 Maximum Alert Level . | . . . Low Security (%) 100 | 100 100 100 Level 1 . | . . . Level 2 . | . . . Level 3 . | . . . Level 4 . | . . . Level 5 . | . . . High Security . | . . . Max Security . | . . . Squads Dispatched 2 | . 2 . Investigation 1 | . 1 . Extermination . | . . . Reinforcement 1 | . 1 . Assault . | . . . Garrison . | . . . Intercept . | . . . Construction Impeded . | . . . Haulers Reinforced . | . . . Stealth | -11 -10 -10 --------- Run | Scr Mat Min Distress Signals 2 | . 2 . Communications Jammed . | . . . Distress Signals . | . . . Times Spotted 39 | . 23 16 Peak Tracking Total 11 | . 7 11 Tactical Retreats 3 | . 3 . Traps | -11 -10 -10 ------- Run | Scr Mat Min Traps Triggered 3 | . 3 . Indirectly . | . . . Trap Hack Attempts . | . . . Triggered . | . . . Disarmed . | . . . Reprogrammed . | . . . Reused . | . . . Traps Extracted . | . . . Installed . | . . . Triggered . | . . . Machines | -11 -10 -10 ---------- Run | Scr Mat Min Machines Disabled 1 | . . 1 Max in Single Turn 1 | . . 1 Machines Sabotaged . | . . . Garrisons Compromised . | . . . Overloaded Fab Kills . | . . . Fab Network Shutdowns . | . . . Hacking | -11 -10 -10 --------- Run | Scr Mat Min Machines Accessed 6 | . 6 . Terminals 6 | . 6 . Fabricators . | . . . Repair Stations . | . . . Recycling Units . | . . . Scanalyzers . | . . . Garrison Access . | . . . Total Hacks 19 | . 19 . Successful 8 | . 8 . Failed 11 | . 11 . Catastrophic . | . . . Database Lockouts . | . . . Manual 18 | . 18 . Terminals 19 | . 19 . Fabricators . | . . . Repair Stations . | . . . Recycling Units . | . . . Scanalyzers . | . . . Garrison Access . | . . . Terminal Hacks 2 | . 2 . Terminal Index 1 | . 1 . Unreport Threat 1 | . 1 . Fabricator Hacks . | . . . Repair Station Hacks . | . . . Recycling Unit Hacks . | . . . Scanalyzer . | . . . Garrison Access Hacks . | . . . Unauthorized Hacks 6 | . 6 . Terminals 6 | . 6 . Botnet 4 | . 4 . Operators 2 | . 2 . Fabricators . | . . . Repair Stations . | . . . Recycling Units . | . . . Scanalyzers . | . . . Garrison Access . | . . . Data Cores Recovered . | . . . Used . | . . . Hacking Detections 6 | . 6 . Full Trace Events . | . . . Feedback Events . | . . . Feedback Blocked . | . . . Robot Schematics Acquired . | . . . Robots Built . | . . . Matter . | . . . Time . | . . . Total Robot Build Rating . | . . . Part Schematics Acquired . | . . . Parts Built . | . . . Matter . | . . . Time . | . . . Total Part Build Rating . | . . . Parts Repaired . | . . . Time . | . . . Parts Recycled . | . . . Recycled Matter . | . . . Retrieved Matter . | . . . Retrieved Components . | . . . Parts Scanalyzed . | . . . Part Schematics Acquired . | . . . Parts Damaged . | . . . Bothacking | -11 -10 -10 ------------ Run | Scr Mat Min Used RIF Installer . | . . . Robots Hacked . | . . . Non-combat . | . . . Combat . | . . . Robot Hacks Applied . | . . . Relay Couplers Released . | . . . Robots Rewired . | . . . Allies Hacked . | . . . Hacks Repelled . | . . . Allies | -11 -10 -10 -------- Run | Scr Mat Min Total Allies . | . . . Largest Group . | . . . Highest-Rated Group . | . . . Highest-Rated Ally . | . . . Total Orders . | . . . Ally Attacks . | . . . Total Damage . | . . . Kills . | . . . Allies Corrupted . | . . . Allies Melted . | . . . Intel | -11 -10 -10 ------- Run | Scr Mat Min Robot Analysis Total . | . . . Derelict Logs Recovered 1 | . . 1 Drone Launches . | . . . Drone Recoveries . | . . . Exploration | -11 -10 -10 ------------- Run | Scr Mat Min Turns Passed 1184 | 112 867 205 Spaces Moved 645 | 75 438 132 Core 8 | 7 1 . Treads . | . . . Legs . | . . . Wheels 635 | 68 435 132 Hover 2 | . 2 . Flight . | . . . Fastest Speed 50 | 50 80 100 Average Speed 93 | 83 92 100 Slowest Speed 650 | 100 650 120 Overloaded Moves . | . . . Propulsion Burnouts . | . . . Robots Hopped . | . . . Cave-ins Triggered . | . . . Exploration Rate (%) 38 | 5 75 34 Regions Visited 2 Branch Regions 1 Pre-discovered Areas 1 | . . 1 Known Exits Taken . | . . . Unknown Exits Taken 2 | 1 1 . Scrap Searched . | . . . Spaces Dug 12 | . 12 . Terrain Destroyed 29 | . 20 9 Melee . | . . . Projectile 12 | . 12 . AOE 17 | . 8 9 Terrain Rammed . | . . . Walls Destroyed . | . . . Machines Disabled . | . . . Actions | -11 -10 -10 --------- Run | Scr Mat Min Total 1065 | 112 770 183 Wait 232 | 13 189 30 Move 643 | 74 437 132 Hop . | . . . Pick Up 37 | 7 28 2 Fast Attach 16 | 7 9 . Attach 11 | . 10 1 Detach 4 | . 4 . Swap 22 | 4 14 4 Drop 21 | 3 16 2 Fire 78 | 4 63 11 Melee . | . . . Ram 1 | . . 1 Kick . | . . . Crush . | . . . Escape Stasis . | . . . Rewire . | . . . Trap . | . . . Miscellaneous . | . . . Route ------- -11/Scrapyard -10/Materials (discovered 4 exits: [*Mat x3] / [*Min]) -10/Mines History --------- Turn | Location | Event 4 | -11/Scrapyard | Discovered new exit (range 15) 113 | -11/Scrapyard | Entered Materials 304 | -10/Materials | Build established: Mutant 430 | -10/Materials | Discovered new exit (range 8) 617 | -10/Materials | Discovered new exit (range 10) 696 | -10/Materials | Core integrity fell below 50% 718 | -10/Materials | Lost 6 parts (1p2n3w) 792 | -10/Materials | Discovered new exit (range 14) 949 | -10/Materials | Discovered new exit (range 11) 980 | -10/Materials | Entered Mines 1008 | -10/Mines | Learned location of Storage (-9) 1015 | -10/Mines | Found a hidden stash of uninstalled traps 1144 | -10/Mines | Assembled infested the area 1149 | -10/Mines | Assisted by a Guerilla fighting off Assembled 1164 | -10/Mines | Core integrity fell below 20% 1185 | -10/Mines | Destroyed by as-38845 with Assembled F-torch Last Messages --------------- 01099_ R-06 Scavenger collects Heat Sink. 01102_ K-01 Serf collects debris. 01110_ K-01 Serf cleans the Laser Drill. 01114_ K-01 Serf collects debris. 01138_ System corrupted: Heat flow error (+115). 01144_ ALERT: Infestation in the mines, dispatching Demolisher response squad. 01149_ A derelict emerges from the shadows: "You need to get out of here! I've been tracking a group of Assembled to figure out where they're coming from, and they're closing on this area, come on!" 01163_ S-10 Pest destroyed. 01163_ Slammed into S-10 Pest. 01163_ S-10 Pest destroyed. 01164_ Acquired 20 matter. 01164_ as-34905 destroyed. 01168_ Wheel destroyed. 01172_ S-10 Pest destroyed. 01180_ as-84299 destroyed. 01182_ Ion Engine destroyed. 01182_ System corrupted by crushing effect (+1). 01184_ as-45363 knocked back. Map ----- +----------------------------------------------------+ | ?????????????????????????????????# #??#!" " """ "" | | ?????????????????????????????????# #??# "" """ "" | | ?????????????????????????????????# #### """ """ "" | | ??????????????????????????# ###### | | ???????????????????????# #### = | | ?????????????????????????######### #??############ | | ????????????????????????????????## #?????????????? | | ???????????????????????????????## ##????????????? | | ???????????????????????????????# ####?????????? | | ???????????????????????????????# ##????????? | | ????????????????????????? #????# ###??????? | | ???????????????????????? ????# ##?????? | | ???????????????????????? ????# #### | | ???????????????????????? #???# | | ???????????????????????? #???## ### | | ????????????????????????# ????### # ##????? | | ???????????????????????## ??????# #######?????? | | ??????????????????#????# #??????# #???????????? | | ??????????????????? ???# #??????# #######?????? | | ???????????????????? ### ##?????# #?????? | | ????????????????????? t ##????# #?????? | | ??????????????????????# #????####### #?????? | | ???????????????????????# #??????????# #??? | | ????????????????????????# #??????????# #? | | ????????????????????????# #???????#### # # | | ????????????????????????#@a #??????## #? | | ???????????????????????## % ##????## ##? | | ???????????????????##### a ##??## """ #?? | | ?????????????????# a aa#### """ #? | | ?????????????????# ### * = """ | | ??????????????????????# == %% ### | | ??????????????????????# ###% #### ##?? | | ??????????????????????# ##?## ##??# ##??? | | ??????????????????????# #???####???# #???? | | ??????????????????????# #??????????? #???? | | ??????????????????????## ##??????????? ##???? | | ???????????????????????#####????????????? ##????? | | ??????????????????????????????????????????##?????? | | ?????????????????????????????????????????????????? | | ?????????????????????????????????????????????????? | | ?????????????????????????????????????????????????? | | ?????????????????????????????????????????????????? | | ?????????????????????????????????????????????????? | | ?????????????????????????????????????????????????? | | ?????????????????????????????????????????????????? | | ?????????????????????????????????????????????????? | | ?????????????????????????????????????????????????? | | ?????????????????????????????????????????????????? | | ?????????????????????????????????????????????????? | | ?????????????????????????????????????????????????? | +----------------------------------------------------+ Best States ------------- Heat Dissipation 25 Energy Generation 10 Energy Capacity 250 Matter Stores 300 Matter Capacity 300 Sight Range 16 Terrain Scan Range 16 Terrain Scan Density 60 Additional Mass Support 6 Armor Coverage 150 Evasion (%) 44 Item Schematics ----------------- None Robot Schematics ------------------ None Fabricated ------------ Nothing Alien Tech Used ----------------- None Achievements -------------- None Challenges ------------ None Game ------ Seed ComponentInertialScrap Manual? 0 Play Time 00:33:37 Cumulative 52.6 hours Start 2020.09.16 @ 16:06:58 End 2020.09.17 @ 09:44:50 Sessions 5 Manual Loads 0 Difficulty Rogue Special Mode None Game No. 30 Rogue 30 Adventurer 0 Explorer 0 Win Type - Total 0 Types 0/0/0/0/0/0/0/0/0 Lore% 13 Gallery% 20 Achievement% 19 Wizard Run 0 Options --------- ASCII 0 Keyboard 1 Movement Numpad Keybinds 0 Fullscreen 2 Font 12/Crisp Map View 83x54 Tactical HUD 1 Map Filters NONE Filters NONE Steam 1 RUN: a672eca3-6dbc-4d15-9dc5-e19060d70bf0